bitfinex-derivatives/quotes_ETHF0:USTF0_20250130
["timestamp","ask_amount","ask_price","bid_price","bid_amount"]
[1738243896350,11.87599827,3266.3,3264.9,3.2078]
[1738243896644,3.2078,3265.8,3264.9,3.2078]
[1738243896851,1.0358,3265.7,3264.9,3.2078]
[1738243897154,0.61253,3265.6,3264.9,3.82045]
[1738243897451,3.2078,3265.8,3264.9,3.2078]
[1738243897641,0.00459432,3265.6,3265.4,0.61257]
[1738243897962,0.00459432,3265.6,3265.0,0.61264]
[1738243898145,0.00459432,3265.6,3264.9,3.82366497]
[1738243898341,0.61712432,3265.6,3264.9,3.82366497]
[1738243898643,0.61712432,3265.6,3264.9,3.21101497]
[1738243898644,0.61258,3265.4,3264.9,3.21101497]
[1738243898952,0.61259,3265.3,3264.9,3.21101497]
[1738243899346,0.00459432,3265.6,3264.9,3.21101497]
[1738243899549,0.61712432,3265.6,3264.9,3.82366497]
[1738243899752,0.00459432,3265.6,3264.9,3.21101497]
[1738243900147,0.61256,3265.5,3264.9,3.21101497]
[1738243900452,0.00459432,3265.6,3264.9,3.21101497]
[1738243900853,0.00459432,3265.6,3265.5,3.82035]
[1738243901047,0.00459432,3265.6,3265.0,3.2078]
[1738243901243,0.00459432,3265.6,3265.4,3.2078]
[1738243901557,0.00459432,3265.6,3265.5,0.61255]
[1738243902052,0.00459432,3265.6,3265.4,3.2078]
[1738243903348,0.00459432,3265.6,3265.0,3.2078]
[1738243903656,0.61256,3265.5,3265.0,3.2078]
[1738243903855,0.00459432,3265.6,3265.0,3.2078]
[1738243904054,0.00459432,3265.6,3265.5,3.82035]
[1738243904850,0.00459432,3265.6,3265.5,3.2078]
[1738243905555,0.00459432,3265.6,3265.5,2.2441196]
[1738243906156,0.00459432,3265.6,3265.5,2.8566696]
[1738243906657,6.87599827,3267.3,3266.4,0.61238]
[1738243906857,0.61226,3267.1,3266.4,0.61238]
[1738243907156,3.2078,3267.3,3266.3,3.2078]
[1738243907962,0.00459432,3267.1,3266.3,3.2078]
[1738243908262,0.61235,3266.6,3265.9,0.61247]
[1738243908459,3.2078,3266.9,3265.8,3.2078]
[1738243908758,0.61239,3266.4,3265.8,3.2078]
[1738243908945,1.53078,3266.8,3265.8,3.2078]
[1738243909255,0.61244,3266.1,3265.4,3.82036]
[1738243909447,3.2078,3266.0,3265.4,3.2078]
[1738243909762,3.82027,3266.0,3265.4,3.2078]
[1738243910358,3.2078,3266.0,3265.4,3.2078]
[1738243910559,3.82019,3266.4,3265.8,0.61249]
[1738243911260,0.9955,3266.6,3266.0,0.61245]
[1738243911650,0.9955,3266.6,3265.9,0.61247]
[1738243911855,0.9955,3266.6,3266.0,0.61245]
[1738243912361,0.9955,3266.6,3265.8,3.82028]
[1738243912655,0.9955,3266.6,3266.0,0.61245]
[1738243912863,0.61238,3266.4,3265.8,3.82028]
[1738243913157,3.2078,3266.9,3265.8,3.2078]
[1738243913360,3.2078,3266.9,3266.2,3.2078]
[1738243913660,0.61685432,3267.1,3266.6,3.2078]
[1738243913862,0.00459432,3267.1,3266.6,3.2078]
[1738243914058,0.61228,3267.0,3266.6,3.2078]
[1738243914256,0.61685432,3267.1,3266.6,3.2078]
[1738243914462,0.00459432,3267.1,3266.6,3.2078]
[1738243915459,0.00459432,3267.1,3267.0,0.61227]
[1738243915662,0.00459432,3267.1,3267.0,3.82007]
[1738243915862,0.00459432,3267.1,3267.0,3.2078]
[1738243916270,0.00459432,3267.1,3267.0,3.82007]
[1738243917465,3.2078,3268.3,3267.0,3.82007]
[1738243917665,3.2078,3268.3,3267.5,3.2078]
[1738243918059,0.61204,3268.2,3267.5,3.2078]
[1738243918362,0.61207,3268.1,3267.5,3.81997]
[1738243918661,0.00459432,3268.1,3267.1,0.61225]
[1738243918867,0.61214,3267.7,3267.0,3.82006]
[1738243919062,3.2078,3267.9,3267.4,0.61218]
[1738243919260,3.2078,3267.9,3267.0,3.2078]
[1738243919567,0.61214,3267.7,3267.1,0.61224]
[1738243920065,3.2078,3267.9,3267.0,3.2078]
[1738243920564,0.61225,3267.1,3267.0,3.2078]
[1738243920765,0.61231,3266.8,3266.7,0.00459432]
[1738243920971,1.58167,3267.0,3266.7,0.00459432]
[1738243921170,0.61231,3266.8,3266.7,0.00459432]
[1738243921369,4.28050827,3266.8,3266.7,0.00459432]
[1738243921678,4.28050827,3266.8,3265.1,1.0411]
[1738243921679,3.66819827,3266.8,3265.7,0.6125]
[1738243921964,3.82016,3266.6,3265.5,1.53138]
[1738243922161,3.2078,3266.6,3265.5,1.53138]
[1738243922358,3.2078,3266.6,3265.9,3.2078]
[1738243922559,1.53051,3267.4,3265.9,3.2078]
[1738243922560,3.2078,3267.5,3267.4,0.61219]
[1738243922768,3.2078,3267.5,3265.9,3.66819827]
[1738243922769,3.2078,3267.9,3266.8,3.2078]
[1738243923071,0.00459432,3267.8,3267.7,0.61214]
[1738243923569,3.66819827,3269.3,3267.7,8.2078]
[1738243923771,3.66819827,3269.3,3268.3,3.2078]
[1738243923967,6.2078,3269.1,3268.3,3.2078]
[1738243924165,6.2078,3269.1,3267.9,3.2078]
[1738243924365,3.2078,3268.7,3268.1,0.61206]
[1738243924768,3.21239432,3268.7,3268.1,0.00459432]
[1738243925269,3.2078,3268.2,3268.1,0.00459432]
[1738243925466,3.81984,3268.2,3268.1,0.00459432]
[1738243925973,8.81984,3268.2,3268.1,0.00459432]
[1738243926269,1.53022,3268.0,3266.3,0.61239]
[1738243926467,3.2078,3266.7,3266.5,0.61236]
[1738243926667,3.2078,3267.1,3266.2,1.53106]
[1738243926869,3.2078,3267.1,3266.9,0.61228]
[1738243927269,3.2078,3267.1,3266.7,0.00459432]
[1738243928182,3.2078,3267.1,3266.7,0.61691432]
[1738243928476,3.2078,3267.1,3266.7,0.00459432]
[1738243928777,0.61227,3267.0,3266.7,0.00459432]
[1738243929077,0.61231,3266.8,3266.7,0.00459432]
[1738243929372,11.87599827,3267.1,3265.6,3.2078]
[1738243929579,3.2078,3266.4,3265.9,0.61247]
[1738243930275,3.2078,3266.4,3265.6,3.2078]
[1738243930484,3.2078,3266.4,3266.3,0.6124]
[1738243931176,3.2078,3267.0,3266.3,0.6124]
[1738243931379,3.2078,3267.0,3266.5,0.61236]
[1738243931580,3.2078,3267.0,3266.0,3.2078]
[1738243932489,3.2078,3267.0,3266.1,0.61244]
[1738243932689,3.2078,3267.0,3266.0,3.2078]
[1738243932981,3.2078,3267.0,3265.8,0.00321497]
[1738243932982,3.2078,3266.6,3265.8,0.00321497]
[1738243933385,3.2078,3266.6,3266.4,0.61237]
[1738243933583,3.2078,3266.6,3266.5,0.61236]
[1738243933784,3.2078,3266.6,3265.8,0.00321497]
[1738243933985,3.2078,3267.0,3266.3,0.61239]
[1738243934674,3.2078,3267.0,3265.8,1.53445497]
[1738243934675,0.61238,3266.4,3265.8,0.00321497]
[1738243934878,3.2078,3266.5,3266.0,0.61245]
[1738243935087,0.61238,3266.4,3265.8,0.00321497]
[1738243935280,3.2078,3266.0,3265.8,0.00321497]
[1738243935488,3.2078,3266.0,3265.9,0.61248]
[1738243935678,3.2078,3266.6,3265.9,0.61248]
[1738243935879,3.2078,3266.6,3266.5,0.61236]
[1738243936080,3.2078,3266.6,3265.9,0.61248]
[1738243936282,3.2078,3266.6,3266.4,0.61237]
[1738243936579,3.2078,3266.6,3265.9,0.61248]
[1738243936881,0.9971,3267.2,3266.5,0.61236]
[1738243937081,0.9971,3267.2,3266.0,3.2078]
[1738243937082,3.2078,3267.2,3266.4,3.2078]
[1738243937786,0.61234,3266.7,3266.4,3.2078]
[1738243937986,0.61236,3266.5,3265.8,0.00321497]
[1738243938189,3.2078,3266.4,3265.8,0.61570497]
[1738243938379,3.2078,3266.4,3265.8,0.00321497]
[1738243938682,0.61245,3266.1,3265.8,0.00321497]
[1738243938886,0.61246,3266.0,3265.8,0.00321497]
[1738243939283,3.2078,3266.4,3265.8,0.00321497]
[1738243939485,3.2078,3266.4,3266.2,0.61241]
[1738243939786,3.2078,3266.4,3266.0,0.61244]
[1738243939977,3.2078,3266.4,3266.2,0.61241]
[1738243940182,3.2078,3266.4,3265.8,3.21101497]
[1738243940483,3.2078,3266.4,3266.3,0.6124]
[1738243940683,1.0126,3266.6,3266.5,0.61236]
[1738243940981,3.2078,3266.9,3266.8,0.61231]
[1738243941185,3.21239432,3267.3,3266.6,3.2078]
[1738243941488,3.82461432,3267.3,3266.6,3.82014]
[1738243941680,0.9611,3267.2,3266.6,3.2078]
[1738243941885,3.8201,3266.9,3266.2,0.61241]
[1738243942181,3.2078,3266.9,3266.1,3.2078]
[1738243942387,0.9611,3267.2,3266.1,3.2078]
[1738243942690,3.21239432,3267.3,3266.6,1.53087]
[1738243942880,3.21239432,3267.3,3266.7,0.61233]
[1738243943075,3.21239432,3267.3,3267.0,0.61225]
[1738243943482,3.21239432,3267.3,3267.2,0.61223]
[1738243943880,3.21239432,3267.3,3266.5,3.2078]
[1738243944082,3.2078,3266.8,3266.5,0.61236]
[1738243945385,3.2078,3266.8,3266.4,0.61237]
[1738243945591,3.2078,3266.8,3266.0,3.2078]
[1738243945592,3.82012,3266.8,3266.0,3.2078]
[1738243945894,1.93114,3266.7,3266.0,3.82025]
[1738243946193,0.61235,3266.6,3266.0,3.0548]
[1738243946780,3.2078,3266.4,3265.8,0.00321497]
[1738243946986,3.82028,3265.9,3265.8,0.00321497]
[1738243947189,3.2078,3265.9,3265.0,3.2078]
[1738243947392,3.2078,3265.5,3264.6,3.2078]
[1738243947583,3.2078,3265.5,3264.4,1.3068]
[1738243947584,3.2078,3265.1,3264.4,0.61274]
[1738243947891,3.2078,3265.1,3264.1,3.95217432]
[1738243948091,3.2078,3265.1,3264.7,0.61269]
[1738243948288,0.00459432,3264.9,3264.1,3.95217432]
[1738243948483,0.00459432,3264.9,3264.6,0.61272]
[1738243948888,0.00459432,3264.9,3264.1,3.95217432]
[1738243949089,0.00459432,3264.9,3264.8,0.61268]
[1738243949289,0.00459432,3264.9,3264.2,3.2078]
[1738243949492,0.00459432,3264.9,3264.8,0.61268]
[1738243949689,0.00459432,3264.9,3264.7,0.61268]
[1738243949889,0.00459432,3264.9,3264.4,0.61275]
[1738243950090,0.00459432,3264.9,3264.3,0.61277]
[1738243950390,0.00459432,3264.9,3264.2,3.2078]
[1738243950593,0.00459432,3264.9,3264.8,0.61268]
[1738243950789,0.00459432,3264.9,3264.2,3.2078]
[1738243950985,0.00459432,3264.9,3264.4,0.61275]
[1738243951189,0.00459432,3264.9,3264.2,3.2078]
[1738243951389,0.00459432,3264.9,3264.8,0.61268]
[1738243951788,0.00459432,3264.9,3264.7,0.6127]
[1738243951988,0.00459432,3264.9,3264.2,3.2078]
[1738243951989,0.00459432,3264.9,3264.8,0.61268]
[1738243954702,0.00459432,3264.9,3264.6,3.2078]
[1738243954994,0.00459432,3264.9,3264.8,0.61268]
[1738243955900,0.00459432,3264.9,3264.2,3.2078]
[1738243956287,3.2078,3264.8,3264.2,3.2078]
[1738243956492,4.5162,3264.8,3264.2,3.82058]
[1738243956791,4.5162,3264.8,3264.2,3.2078]
[1738243957199,4.5162,3264.8,3264.3,0.61277]
[1738243957401,4.5162,3264.8,3264.2,3.2078]
[1738243957694,0.61272,3264.7,3264.2,3.2078]
[1738243958096,4.5162,3264.8,3264.3,0.61278]
[1738243958491,4.5162,3264.8,3264.5,0.61272]
[1738243958699,4.5162,3264.8,3264.2,3.2078]
[1738243958898,4.5162,3264.8,3264.6,0.61272]
[1738243959096,4.5162,3264.8,3264.2,3.2078]
[1738243959499,0.00459432,3264.9,3264.6,3.2078]
[1738243959795,0.00459432,3264.9,3264.8,0.61268]
[1738243960396,0.00459432,3264.9,3264.7,0.61269]
[1738243960698,0.00459432,3264.9,3264.6,0.61271]
[1738243960998,0.00459432,3264.9,3264.6,0.6127]
[1738243961294,0.00459432,3264.9,3264.2,3.2078]
[1738243961604,3.2078,3264.8,3264.3,0.61278]
[1738243961799,3.2078,3264.8,3264.4,0.61274]
[1738243962098,3.2078,3264.8,3264.5,0.61274]
[1738243962402,3.2078,3264.8,3264.6,0.61271]
[1738243962997,3.2078,3264.8,3264.4,0.61274]
[1738243963198,3.2078,3264.8,3264.2,3.2078]
[1738243963398,3.2078,3264.8,3264.5,0.61274]
[1738243963597,3.2078,3264.8,3264.2,3.2078]
[1738243964402,0.00459432,3264.9,3264.8,0.61268]
[1738243967803,0.00459432,3264.9,3264.8,3.82048]
[1738243968507,0.00459432,3264.9,3234.2,2.86133194]
[1738243968508,0.61293,3263.5,3262.3,0.61314]
[1738243968806,3.2078,3262.7,3262.6,0.6131]
[1738243969003,3.21239432,3263.2,3262.6,0.6131]
[1738243969206,3.21239432,3263.2,3263.1,0.613]
[1738243969406,0.00459432,3263.2,3263.1,0.613]
[1738243969604,3.2078,3263.8,3263.5,0.61293]
[1738243969803,3.2078,3263.8,3263.7,0.61289]
[1738243970004,3.2078,3264.3,3263.4,3.2078]
[1738243970308,3.2078,3264.3,3264.2,0.6128]
[1738243970507,3.82058,3264.3,3263.7,0.61287]
[1738243970805,3.2078,3263.9,3263.4,0.61294]
[1738243971003,0.00459432,3264.6,3263.0,3.2078]
[1738243971004,3.2078,3263.5,3263.0,3.2078]
[1738243971203,3.2078,3263.1,3262.9,1.90923]
[1738243971405,3.2078,3263.1,3262.9,1.30079432]
[1738243971607,3.82082,3263.1,3262.9,0.00459432]
[1738243971807,0.61302,3263.0,3262.9,0.00459432]
[1738243972103,0.61309,3262.7,3262.2,1.18239432]
[1738243972408,0.61313,3262.5,3261.9,0.61322]
[1738243972610,3.2078,3262.2,3261.8,0.61323]
[1738243972808,3.2078,3262.2,3261.7,1.4189]
[1738243973005,0.61316,3262.3,3261.8,0.61324]
[1738243973202,3.2078,3261.9,3261.8,0.61324]
[1738243973401,3.2078,3261.9,3261.7,1.4189]
[1738243974106,0.61325,3261.8,3261.2,0.61336]
[1738243974307,3.2078,3261.3,3261.2,0.61336]
[1738243974704,3.2078,3261.8,3261.2,5.0]
[1738243974905,3.2078,3261.3,3260.8,3.2078]
[1738243975105,3.2078,3261.3,3261.1,0.61337]
[1738243975412,3.2078,3261.3,3260.9,0.61341]
[1738243976004,3.2078,3261.3,3260.7,2.03234]
[1738243976212,3.2078,3260.9,3260.7,1.4189]
[1738243976409,0.61343,3260.8,3260.3,0.61351]
[1738243976617,3.2078,3260.4,3260.3,0.61351]
[1738243977104,3.2078,3260.4,3260.2,1.4099]
[1738243977308,3.2078,3260.4,3260.3,0.61353]
[1738243977510,3.2078,3261.5,3260.1,3.2078]
[1738243977703,3.2078,3261.5,3259.6,2.802]
[1738243977704,0.61264,3265.1,3263.3,3.2078]
[1738243977904,3.2078,3265.5,3264.6,3.2078]
[1738243978310,3.2078,3265.5,3264.6,3.82051]
[1738243978311,3.0672,3264.8,3264.6,3.82051]
[1738243978613,3.0672,3264.7,3264.2,3.2078]
[1738243978808,3.0672,3264.3,3264.2,3.0548]
[1738243980910,3.0672,3264.3,3263.7,3.2078]
[1738243981106,3.0672,3263.8,3263.7,3.2078]
[1738243983717,0.61261,3265.2,3264.4,0.61275]
[1738243984015,3.2078,3265.6,3264.7,0.61269]
[1738243984213,3.0672,3264.6,3264.5,3.82054]
[1738243984416,3.0672,3264.6,3264.5,3.2078]
[1738243984812,3.0672,3264.6,3264.5,3.82054]
[1738243986012,0.00459432,3265.4,3264.5,3.2078]
[1738243986316,0.6126,3265.3,3264.6,0.61272]
[1738243986620,3.0672,3264.6,3264.5,3.82054]
[1738243987420,0.00459432,3265.4,3264.5,3.2078]
[1738243987716,3.0672,3264.8,3264.7,0.6127]
[1738243987907,3.0672,3264.8,3264.7,3.8205]
[1738243988814,0.00459432,3265.4,3264.8,0.61268]
[1738243989120,0.00459432,3265.4,3265.2,3.2078]
[1738243989513,3.6798,3265.3,3264.8,3.82047]
[1738243989713,0.00459432,3265.4,3264.8,3.2078]
[1738243990020,3.0672,3264.9,3264.8,3.82048]
[1738243994217,3.0672,3264.9,3264.8,3.2078]
[1738243994721,3.0672,3264.9,3264.8,3.82048]
[1738243996116,0.00459432,3265.4,3265.3,0.61259]
[1738243996319,0.00459432,3265.4,3265.3,3.82039]
[1738243996515,3.07179432,3265.4,3265.3,3.82039]
[1738243998222,0.00459432,3265.4,3265.3,3.82039]
[1738244002223,4.32e-06,3265.4,3265.3,3.82039]
[1738244002425,4.32e-06,3265.4,3265.3,8.82039]
[1738244002625,4.32e-06,3265.4,3265.3,3.82039]
[1738244002820,4.32e-06,3265.4,3265.3,8.82039]
[1738244003022,4.32e-06,3265.4,3265.3,3.82039]
[1738244003227,4.32e-06,3265.4,3265.3,8.82039]
[1738244005728,4.32e-06,3265.4,3265.3,3.82039]
[1738244006533,4.32e-06,3265.4,3265.3,8.82039]
[1738244007628,3.06720432,3265.4,3265.3,3.82039]
[1738244007828,3.06720432,3265.4,3265.3,3.59639]
[1738244008526,4.32e-06,3265.4,3265.3,3.59639]
[1738244008728,4.32e-06,3265.4,3265.3,8.59639]
[1738244009729,1.3268,3267.3,3265.3,8.2078]
[1738244009934,1.3268,3267.3,3265.0,0.00459]
[1738244009935,0.61224,3267.2,3267.1,0.61224]
[1738244010124,1.3268,3267.3,3267.2,0.61223]
[1738244010125,1.93902,3267.3,3267.2,0.61223]
[1738244010328,4.394,3267.3,3267.0,3.2078]
[1738244010528,3.67945,3267.1,3267.0,3.2078]
[1738244010726,3.67945,3267.1,3267.0,3.82007]
[1738244010925,3.67945,3267.1,3267.0,3.2078]
[1738244011121,0.61231,3266.8,3266.7,0.00459432]
[1738244011320,3.0672,3266.8,3266.2,3.2078]
[1738244011529,0.6124,3266.3,3266.2,3.2078]
[1738244011835,0.61248,3265.9,3265.8,0.1406]
[1738244012036,3.2078,3266.3,3265.1,3.2078]
[1738244012233,3.2078,3265.9,3265.1,3.2078]
[1738244012529,0.61251,3265.7,3265.1,3.2078]
[1738244012721,2.87526,3265.8,3265.1,3.2078]
[1738244012722,0.61259,3265.3,3265.1,3.2078]
[1738244012927,2.14839432,3265.7,3265.1,3.2078]
[1738244013130,0.61261,3265.3,3265.1,3.2078]
[1738244013636,0.61258,3265.4,3265.1,3.2078]
[1738244014331,0.00459432,3265.7,3265.1,3.2078]
[1738244014633,0.61256,3265.5,3265.1,3.2078]
[1738244015030,1.96864,3265.6,3265.1,3.2078]
[1738244015828,1.3561,3265.6,3265.1,3.2078]
[1738244016127,0.61256,3265.5,3265.1,3.2078]
[1738244016529,3.2078,3265.4,3264.7,3.2078]
[1738244016734,0.61266,3265.0,3264.4,0.61275]
[1738244017038,1.3131,3264.9,3264.2,0.61279]
[1738244017227,0.6127,3264.7,3264.1,0.61281]
[1738244017532,0.61269,3264.8,3264.2,0.61278]
[1738244017927,1.3131,3264.9,3263.9,3.2078]
[1738244018128,1.3131,3264.9,3264.4,0.61274]
[1738244018328,1.3131,3264.9,3263.9,3.2078]
[1738244018530,1.92578,3264.9,3263.9,3.2078]
[1738244018929,1.92578,3264.9,3264.3,0.61277]
[1738244019527,1.3131,3264.9,3263.9,3.2078]
[1738244019734,0.61269,3264.8,3264.2,0.61278]
[1738244019937,0.61273,3264.6,3264.0,0.61283]
[1738244020133,3.2078,3264.6,3263.9,3.2078]
[1738244020340,0.61275,3264.5,3263.9,3.82065]
[1738244020733,1.95795,3264.5,3263.9,3.82065]
[1738244021132,1.3452,3264.5,3263.9,3.2078]
[1738244021334,1.3452,3264.5,3263.5,3.2078]
[1738244021837,1.95795,3264.5,3263.9,0.61284]
[1738244022237,1.3452,3264.5,3263.8,0.61286]
[1738244022436,0.61277,3264.4,3263.7,0.61287]
[1738244022633,0.61277,3264.4,3263.5,3.2078]
[1738244022634,1.3452,3264.5,3263.6,0.61291]
[1738244022834,1.3452,3264.5,3263.5,3.2078]
[1738244023029,0.61278,3264.3,3263.7,0.61288]
[1738244023229,3.2078,3264.2,3263.7,0.61288]
[1738244024042,3.8206,3264.2,3263.7,0.61288]
[1738244024430,3.2078,3264.2,3263.7,0.61288]
[1738244024846,3.2078,3264.2,3263.5,3.2078]
[1738244025141,3.82061,3264.2,3263.7,0.61288]
[1738244025338,3.2078,3264.2,3263.1,3.2078]
[1738244025542,3.8206,3264.2,3263.7,0.61287]
[1738244025738,0.00459432,3264.0,3263.7,0.61287]
[1738244025936,0.00459432,3264.0,3263.1,3.2078]
[1738244026136,0.61743432,3264.0,3263.5,0.61291]
[1738244026443,0.61743432,3264.0,3263.6,0.6129]
[1738244026830,0.00459432,3264.0,3263.1,3.2078]
[1738244027032,0.61744432,3264.0,3263.6,0.6129]
[1738244027238,0.61285,3263.9,3263.5,0.61292]
[1738244027438,0.61285,3263.9,3263.4,0.61293]
[1738244027732,0.61291,3263.7,3263.2,0.61298]
[1738244028245,3.82068,3263.8,3263.4,0.61293]
[1738244028448,3.2078,3263.8,3263.1,3.2078]
[1738244028943,0.61295,3263.4,3263.1,3.2078]
[1738244029141,3.17504332,3263.3,3263.1,3.2078]
[1738244029346,3.8208,3263.2,3262.7,0.61308]
[1738244030444,0.61301,3263.1,3262.7,0.61307]
[1738244030939,0.61304,3263.0,3262.6,3.2078]
[1738244031142,1.96314,3263.0,3262.6,3.82089]
[1738244031838,1.96314,3263.0,3262.6,3.2078]
[1738244031839,1.96313,3263.0,3262.6,3.2078]
[1738244032237,1.3501,3263.0,3262.6,3.2078]
[1738244032551,1.96312,3263.0,3262.6,3.82089]
[1738244032745,1.96312,3263.0,3262.6,3.2078]
[1738244033343,1.3501,3263.0,3262.8,0.61304]
[1738244033939,1.3501,3263.0,3262.7,0.61307]
[1738244034341,1.3501,3263.0,3262.7,0.57807]
[1738244034744,1.3501,3263.0,3262.6,3.2078]
[1738244034949,1.3501,3263.0,3259.9,0.45996697]
[1738244034950,3.2078,3262.7,3261.0,4.657]
[1738244035150,3.2078,3262.1,3261.6,0.61328]
[1738244035346,3.2078,3262.1,3261.0,4.657]
[1738244035541,3.2078,3262.1,3261.5,0.6133]
[1738244035845,0.61321,3262.0,3261.0,4.657]
[1738244036039,3.2078,3262.1,3261.0,4.657]
[1738244036240,3.2078,3262.1,3261.0,1.4492]
[1738244036435,3.2078,3261.5,3261.1,0.61338]
[1738244036648,3.2078,3261.5,3261.0,1.4492]
[1738244037042,3.2078,3261.5,3261.0,2.06259]
[1738244037640,0.61339,3261.1,3260.6,3.2078]
[1738244037850,0.6134,3261.0,3260.6,3.2078]
[1738244038039,3.17504332,3261.2,3260.6,3.2078]
[1738244038445,3.17504332,3261.2,3260.0,2.681]
[1738244038446,3.82124,3260.8,3260.1,0.61355]
[1738244038643,0.61345,3260.7,3260.0,6.50237]
[1738244038842,3.2078,3260.8,3260.1,0.61355]
[1738244039250,0.61348,3260.6,3260.0,5.8888]
[1738244039442,0.61352,3260.4,3260.0,5.8888]
[1738244039642,0.61354,3260.3,3260.0,5.8888]
[1738244039839,3.17504332,3260.4,3260.0,3.2078]
[1738244040250,6.38284332,3260.4,3259.9,0.45996697]
[1738244040550,6.99642332,3260.0,3259.9,0.45996697]
[1738244040940,6.38284332,3260.0,3259.9,0.45996697]
[1738244041145,6.99642332,3260.0,3259.9,0.45996697]
[1738244041351,6.99642332,3260.0,3258.2,3.17504332]
[1738244041352,11.38284332,3260.0,3258.2,3.2078]
[1738244041548,3.2078,3258.8,3258.3,0.6139]
[1738244041753,3.17504332,3258.9,3258.4,0.61388]
[1738244041953,3.17504332,3258.9,3258.1,2.7067]
[1738244042253,4.6648,3259.2,3256.9,1.53538]
[1738244042254,3.2078,3258.2,3257.4,3.2078]
[1738244042453,3.82172,3258.2,3257.5,0.61406]
[1738244042751,3.2078,3258.2,3257.1,1.3863]
[1738244043356,3.2078,3257.8,3257.4,0.61407]
[1738244043543,3.2078,3257.8,3257.1,1.3863]
[1738244043948,3.2078,3257.4,3256.8,1.4033]
[1738244044154,3.2078,3257.4,3256.7,0.61421]
[1738244044351,3.2078,3257.4,3256.5,3.2078]
[1738244044654,3.2078,3258.3,3257.8,0.614]
[1738244044848,3.2078,3258.3,3257.3,3.2078]
[1738244045248,1.3941,3259.9,3257.3,3.2078]
[1738244045249,3.21240178,3258.8,3257.3,3.2078]
[1738244045451,3.21240178,3258.8,3257.9,3.2078]
[1738244045647,3.82621178,3258.8,3257.9,0.61397]
[1738244045847,3.21240178,3258.8,3257.5,3.2078]
[1738244046048,3.2078,3258.4,3257.5,3.2078]
[1738244046551,0.61407,3257.5,3257.0,3.2078]
[1738244046859,0.61406,3257.5,3257.0,3.2078]
[1738244047048,3.2078,3257.7,3257.0,3.2078]
[1738244047357,0.61405,3257.6,3257.0,3.2078]
[1738244047552,0.61405,3257.6,3256.5,1.3793]
[1738244047553,3.2078,3257.2,3256.5,3.2078]
[1738244047748,3.2078,3257.2,3256.1,3.2078]
[1738244048057,3.2078,3256.6,3255.6,3.2078]
[1738244048359,3.2078,3256.6,3256.3,0.61428]
[1738244048550,3.2078,3256.7,3255.6,3.2078]
[1738244048851,3.2078,3256.8,3256.0,3.2078]
[1738244049150,3.2078,3256.9,3255.5,4.5723]
[1738244049352,3.2078,3256.5,3255.7,0.61438]
[1738244049650,3.2078,3256.5,3255.5,4.5723]
[1738244049651,3.2078,3256.5,3255.6,0.6144]
[1738244049843,3.2078,3256.5,3255.6,0.61441]
[1738244050049,3.2078,3256.5,3255.5,4.5723]
[1738244050253,0.61426,3256.4,3255.6,0.6144]
[1738244050453,3.2078,3256.5,3255.5,3.2078]
[1738244050646,0.00460178,3257.0,3255.0,3.2078]
[1738244050647,3.2078,3255.6,3255.0,3.2078]
[1738244050854,3.82222,3255.6,3255.0,3.2078]
[1738244051153,0.61447,3255.3,3254.6,3.2078]
[1738244051353,3.2078,3255.6,3254.6,3.2078]
[1738244051547,3.2078,3255.6,3254.9,0.61453]
[1738244051747,0.00460178,3255.4,3254.6,3.2078]
[1738244051947,0.61905178,3255.4,3254.6,3.8224]
[1738244052147,0.00460178,3255.4,3254.6,3.2078]
[1738244052351,0.61906178,3255.4,3254.6,3.8224]
[1738244052557,0.00460178,3255.4,3254.6,3.2078]
[1738244052954,3.2078,3254.9,3254.2,0.61466]
[1738244053159,3.2078,3254.9,3254.1,3.82249]
[1738244053360,3.2078,3254.9,3254.1,3.2078]
[1738244053559,3.2078,3254.9,3254.4,0.61463]
[1738244053761,3.2078,3254.9,3254.6,0.61459]
[1738244054058,3.2078,3254.9,3253.7,1.3455]
[1738244054059,0.00460178,3255.4,3255.2,0.61448]
[1738244054258,0.00460178,3255.4,3255.3,0.61447]
[1738244054453,0.00460178,3255.4,3255.3,3.82227]
[1738244054657,3.2078,3256.5,3256.0,0.61433]
[1738244054850,3.2078,3256.5,3255.7,3.2078]
[1738244055260,3.2078,3256.1,3255.3,3.2078]
[1738244055456,3.2078,3256.1,3255.6,0.6144]
[1738244055651,3.2078,3256.1,3255.5,0.61443]
[1738244055853,3.2078,3256.1,3255.5,0.004609]
[1738244056449,0.61441,3255.6,3255.5,0.004609]
[1738244056859,3.2078,3255.7,3255.5,0.004609]
[1738244058256,3.2078,3255.7,3255.5,0.619029]
[1738244059365,3.212409,3256.2,3255.5,0.004609]
[1738244060257,0.004609,3256.2,3256.1,0.61432]
[1738244062662,0.004609,3256.2,3255.8,3.2078]
[1738244063164,0.004609,3256.2,3255.7,0.61439]
[1738244063165,3.2078,3256.1,3255.7,0.61439]
[1738244063351,3.2078,3256.1,3255.8,0.61436]
[1738244063671,0.004609,3256.2,3256.1,0.61432]
[1738244063856,0.61414,3257.1,3256.5,0.61424]
[1738244064164,1.94741,3257.2,3256.6,0.61422]
[1738244064368,1.3333,3257.2,3256.0,1.53582]
[1738244064560,1.3333,3257.2,3256.8,0.61418]
[1738244064863,3.2078,3257.3,3257.2,0.61411]
[1738244065065,3.212409,3257.3,3257.2,0.61411]
[1738244065467,3.212409,3257.3,3256.5,1.53562]
[1738244065654,3.212409,3257.3,3257.0,0.61414]
[1738244066456,3.212409,3257.3,3255.9,2.7028]
[1738244066457,0.004609,3257.3,3257.2,0.61411]
[1738244066866,4.6086,3258.4,3257.6,1.5351]
[1738244067063,4.6086,3258.4,3257.7,3.2078]
[1738244067458,0.61399,3257.9,3257.1,0.61413]
[1738244067663,3.2078,3258.0,3257.0,2.7016]